bitfinex/quotes_ETHUSD_20250519
["timestamp","ask_amount","ask_price","bid_price","bid_amount"]
[1747624204296,3.5,2394.1,2394.0,19.62373733]
[1747624204843,3.5,2394.1,2394.0,23.80084677]
[1747624205674,3.5,2394.1,2394.0,19.62373733]
[1747624206079,7.67693496,2394.1,2394.0,19.62373733]
[1747624206278,3.5,2394.1,2394.0,19.62373733]
[1747624207082,7.67693496,2394.1,2394.0,10.34207384]
[1747624207446,3.5,2394.1,2394.0,10.34207384]
[1747624207647,3.5,2394.1,2394.0,10.89207384]
[1747624208657,7.67693496,2394.1,2394.0,10.89207384]
[1747624209388,3.5,2394.1,2394.0,10.89207384]
[1747624209590,3.5,2394.1,2394.0,17.97289066]
[1747624209795,3.5,2394.1,2394.0,26.72749066]
[1747624209961,3.5,2394.1,2394.0,37.74624766]
[1747624210292,3.5,2394.1,2394.0,26.72749066]
[1747624210794,3.5,2394.1,2394.0,32.67938122]
[1747624210996,3.5,2394.1,2394.0,22.55038122]
[1747624213297,7.67693496,2394.1,2394.0,0.00907384]
[1747624213500,7.67693496,2394.1,2394.0,10.34207384]
[1747624213706,7.67693496,2394.1,2394.0,10.89207384]
[1747624214262,7.67693496,2394.1,2394.0,10.34207384]
[1747624214503,4.17693496,2394.1,2394.0,10.34207384]
[1747624214661,5.01230661,2394.1,2394.0,0.00907384]
[1747624214995,9.48910078,2394.1,2394.0,0.00907384]
[1747624215389,15.05863496,2394.1,2394.0,0.00907384]
[1747624215593,4.98763496,2394.1,2394.0,0.00907384]
[1747624215789,15.05263496,2394.1,2394.0,0.00907384]
[1747624217071,4.98763496,2394.1,2394.0,0.00907384]
[1747624217272,15.04163496,2394.1,2394.0,0.00907384]
[1747624218098,20.62957078,2394.1,2394.0,0.00907384]
[1747624219704,14.99663496,2394.1,2394.0,0.00907384]
[1747624219903,4.98763496,2394.1,2394.0,0.00907384]
[1747624220399,4.17693496,2394.1,2394.0,0.00907384]
[1747624220605,4.17693496,2394.1,2394.0,10.56807384]
[1747624221569,1.31417204,2394.5,2394.1,0.55]
[1747624221786,1.31417204,2394.5,2394.0,10.56807384]
[1747624221787,4.17641162,2394.4,2394.3,0.55]
[1747624221979,4.17658605,2394.3,2394.2,0.55]
[1747624225042,4.17655598,2394.4,2394.2,0.55]
[1747624225303,4.17658605,2394.3,2394.2,0.55]
[1747624225719,4.17693496,2394.1,2394.0,0.00907384]
[1747624225918,4.17693496,2394.1,2394.0,18.56807384]
[1747624226219,4.17684075,2394.2,2394.1,8.0]
[1747624226423,4.176507,2394.4,2394.2,1.3064]
[1747624227175,4.17577076,2394.8,2394.2,1.3064]
[1747624227375,4.17658605,2394.3,2394.2,1.3064]
[1747624227675,4.17658605,2394.3,2394.2,11.52375812]
[1747624227877,4.17658605,2394.3,2394.2,10.76735812]
[1747624228077,4.17693496,2394.1,2394.0,10.01807384]
[1747624228686,4.17693496,2394.1,2394.0,0.00907384]
[1747624230579,4.94173496,2394.1,2394.0,0.00907384]
[1747624232712,14.78073496,2394.1,2394.0,0.00907384]
[1747624233603,14.76873496,2394.1,2394.0,0.00907384]
[1747624233802,4.94173496,2394.1,2394.0,0.00907384]
[1747624233985,14.76373496,2394.1,2394.0,0.00907384]
[1747624234191,4.94173496,2394.1,2394.0,0.00907384]
[1747624234379,14.75673496,2394.1,2394.0,0.00907384]
[1747624236719,18.42282913,2394.1,2394.0,0.00907384]
[1747624236888,4.17937894,2392.7,2392.6,10.41977159]
[1747624237789,4.17937894,2392.7,2392.6,0.40977159]
[1747624238418,4.93267894,2392.7,2392.6,0.40977159]
[1747624238634,4.17972831,2392.5,2392.4,28.049]
[1747624238941,4.17972831,2392.5,2392.4,10.01]
[1747624240117,4.17972831,2392.5,2392.2,0.31997318]
[1747624240305,9.752,2392.9,2391.8,8.0]
[1747624240510,4.18077678,2391.9,2391.8,8.0]
[1747624240707,4.18077678,2391.9,2391.8,18.012]
[1747624241130,4.18077678,2391.9,2391.8,8.0]
[1747624241331,4.18077678,2391.9,2391.8,10.012]
[1747624241629,4.18077678,2391.9,2391.8,18.012]
[1747624241841,4.18077678,2391.9,2391.8,10.012]
[1747624242042,4.18077678,2391.9,2391.8,10.562]
[1747624245239,4.18095158,2391.8,2391.7,27.746]
[1747624245405,4.18095158,2391.8,2391.7,9.707]
[1747624245604,4.18095158,2391.8,2391.2,0.00643187]
[1747624245605,4.18182578,2391.3,2391.2,0.00643187]
[1747624245805,4.18182578,2391.3,2391.2,9.71343187]
[1747624246438,4.18182578,2391.3,2391.2,5.11183187]
[1747624246766,4.18217556,2391.1,2391.0,18.047]
[1747624246937,4.18217556,2391.1,2391.0,27.754]
[1747624247122,4.18217556,2391.1,2391.0,28.304]
[1747624247306,4.18217556,2391.1,2391.0,27.754]
[1747624248559,8.63317532,2391.2,2390.5,1.16057159]
[1747624248864,8.63317532,2391.2,2390.3,9.709]
[1747624248865,4.18340026,2390.4,2390.3,9.709]
[1747624249059,4.1830382,2390.7,2390.4,8.0]
[1747624249381,4.18316856,2390.6,2390.5,0.55]
[1747624249520,4.18340026,2390.4,2390.3,9.709]
[1747624249722,4.18355516,2390.4,2390.3,9.709]
[1747624249923,4.18355516,2390.4,2390.3,10.259]
[1747624250218,4.18427549,2389.9,2389.8,0.31298958]
[1747624250633,0.83667973,2390.4,2389.8,0.31298958]
[1747624250828,4.18394641,2390.1,2389.8,0.31298958]
[1747624251051,4.18381053,2390.2,2389.8,0.31298958]
[1747624251258,0.7996,2390.8,2390.0,0.55]
[1747624251554,4.18362864,2390.3,2390.1,10.261]
[1747624252117,0.7996,2390.8,2389.9,0.7691]
[1747624252452,4.1833654,2390.5,2389.2,18.051]
[1747624252639,4.1833654,2390.5,2389.0,9.711]
[1747624252640,0.7749,2389.9,2389.0,9.711]
[1747624252843,4.95929366,2389.9,2389.1,8.0]
[1747624253041,0.7749,2390.2,2389.2,0.8272]
[1747624253244,0.7749,2390.6,2389.6,0.8272]
[1747624253458,4.1848008,2389.6,2389.5,18.055]
[1747624253646,4.18560713,2389.2,2389.1,0.31605986]
[1747624253846,4.18550142,2389.2,2389.1,9.711]
[1747624254047,4.18515379,2389.4,2389.2,8.0]
[1747624254248,4.18526169,2389.4,2389.2,8.0]
[1747624254762,4.18526169,2389.4,2389.1,9.711]
[1747624254949,4.18526169,2389.4,2389.2,8.55]
[1747624255151,4.18526169,2389.4,2389.2,0.55]
[1747624255460,4.18526169,2389.4,2389.2,8.55]
[1747624255625,9.783,2389.8,2389.2,8.55]
[1747624255626,4.18499746,2389.5,2389.2,8.55]
[1747624255831,4.18518977,2389.4,2389.2,8.55]
[1747624256156,4.18504273,2389.5,2389.2,8.55]
[1747624256348,4.18517924,2389.4,2389.2,8.55]
[1747624256551,0.7648,2390.0,2389.2,8.55]
[1747624256879,4.18499816,2389.5,2389.2,8.55]
[1747624257160,4.1847234,2389.7,2389.2,11.88118804]
[1747624257728,4.1848867,2389.6,2389.2,11.88118804]
[1747624258567,0.7648,2390.0,2389.2,11.88118804]
[1747624258727,4.18445316,2389.8,2389.4,0.55]
[1747624259235,4.18450278,2389.8,2389.5,0.55]
[1747624259456,4.18450278,2389.8,2389.7,8.55]
[1747624259858,4.18450278,2389.8,2389.7,8.0]
[1747624260042,4.1848008,2389.6,2389.5,9.715]
[1747624260246,4.18585182,2389.0,2388.9,0.7621]
[1747624260535,4.18574896,2389.1,2389.0,0.55]
[1747624260751,4.18558361,2389.2,2389.0,0.55]
[1747624260953,4.18567661,2389.1,2388.9,18.78664876]
[1747624261463,4.18556859,2389.2,2389.0,8.0]
[1747624261874,4.18545368,2389.3,2389.0,8.0]
[1747624262162,4.18550142,2389.2,2389.1,0.55]
[1747624262369,4.18585182,2389.0,2388.9,10.78664876]
[1747624262664,4.18585182,2389.0,2388.9,9.716]
[1747624263167,4.18585182,2389.0,2388.9,10.266]
[1747624263574,4.18602704,2388.9,2388.6,0.7524]
[1747624263772,4.18602704,2388.9,2388.8,27.773]
[1747624264282,4.18602704,2388.9,2388.8,28.323]
[1747624264580,4.18570712,2389.1,2388.5,0.66666667]
[1747624264581,4.18655279,2388.6,2388.5,0.66666667]
[1747624265243,4.18604639,2388.9,2388.6,0.55]
[1747624265551,12.18637752,2388.7,2388.6,0.55]
[1747624266084,4.18637752,2388.7,2388.6,0.55]
[1747624266441,10.4594,2389.2,2388.5,1.21666667]
[1747624266442,4.18655279,2388.6,2388.5,1.21666667]
[1747624266644,4.18585182,2389.0,2388.5,1.21666667]
[1747624266887,12.98375279,2388.6,2388.5,0.66666667]
[1747624267079,4.98375279,2388.6,2388.5,0.66666667]
[1747624267379,12.98375279,2388.6,2388.5,0.66666667]
[1747624267580,14.75421003,2388.6,2388.5,0.66666667]
[1747624267742,24.39521003,2388.6,2388.5,0.66666667]
[1747624268078,16.39221003,2388.6,2388.5,0.66666667]
[1747624269046,6.75421003,2388.6,2388.5,0.66666667]
[1747624269242,16.40321003,2388.6,2388.5,0.66666667]
[1747624270179,4.18728273,2388.2,2387.8,9.719]
[1747624270677,4.18778005,2387.9,2387.8,18.269]
[1747624270869,4.18768094,2388.0,2387.8,18.269]
[1747624271063,4.18778005,2387.9,2387.8,18.269]
[1747624271379,4.18691669,2388.4,2387.8,18.269]
[1747624271580,4.18771729,2388.0,2387.8,18.269]
[1747624272079,4.18737607,2388.2,2387.9,0.55]
[1747624272382,4.96086964,2388.9,2388.3,8.55]
[1747624272579,4.18563835,2389.2,2388.6,4.1864639]
[1747624272784,4.18579784,2389.1,2388.8,0.55]
[1747624273095,0.7748,2389.8,2389.0,12.73580671]
[1747624273299,4.18508688,2389.5,2389.2,0.55]
[1747624273497,4.18550142,2389.2,2389.1,17.722]
[1747624273660,4.18526848,2389.4,2389.1,17.722]
[1747624273863,4.18550142,2389.2,2389.1,17.722]
[1747624274064,4.18536592,2389.3,2389.1,17.722]
[1747624274291,4.18550142,2389.2,2389.1,17.722]
[1747624274484,4.18540971,2389.3,2389.1,17.722]
[1747624274689,4.18502308,2389.5,2389.2,0.55]
[1747624274859,4.18519026,2389.4,2389.2,0.86511971]
[1747624275571,4.18497082,2389.6,2389.2,0.86511971]
[1747624275790,10.3376,2390.1,2389.2,0.86511971]
[1747624275990,4.18510609,2389.5,2389.2,0.86511971]
[1747624276298,4.18507557,2389.5,2389.2,0.86511971]
[1747624276496,4.18427549,2389.9,2389.4,0.55]
[1747624276703,4.18472904,2389.7,2389.4,0.55]
[1747624276887,4.18472838,2389.7,2389.4,0.55]
[1747624277203,4.18497593,2389.5,2389.4,8.55]
[1747624277501,4.18497593,2389.5,2389.4,10.152]
[1747624279452,0.7516,2390.1,2389.4,18.152]
[1747624279707,4.18441312,2389.9,2389.5,8.0]
[1747624279906,4.18375031,2390.2,2389.6,9.601]
[1747624280084,4.18497593,2389.5,2389.4,0.55]
[1747624280483,4.18515108,2389.4,2389.3,18.075]
[1747624280687,4.18515108,2389.4,2389.3,27.676]
[1747624280883,5.44064386,2389.4,2389.3,18.075]
[1747624281387,5.44064386,2389.4,2389.3,18.07314478]
[1747624283083,4.18620227,2388.8,2388.7,9.601]
[1747624283305,4.18690336,2388.4,2388.3,9.601]
[1747624283512,4.18690336,2388.4,2388.3,17.601]
[1747624283874,9.585,2388.9,2388.4,0.55]
[1747624284069,4.18672807,2388.5,2388.4,0.55]
[1747624284491,4.18663909,2388.6,2388.4,0.55]
[1747624284893,4.18672807,2388.5,2388.4,0.55]
[1747624285270,4.1871273,2388.3,2388.1,0.55]
[1747624285478,4.18665459,2388.6,2388.3,0.55]
[1747624285676,4.18654697,2388.7,2388.5,0.55]
[1747624286196,4.18655279,2388.6,2388.5,0.55]
[1747624286399,4.18672807,2388.5,2388.4,9.601]
[1747624286601,4.18672807,2388.5,2388.4,18.151]
[1747624286797,4.18672807,2388.5,2388.4,8.55]
[1747624286982,4.18672807,2388.5,2388.4,8.0]
[1747624287205,4.18672807,2388.5,2388.4,17.602]
[1747624287391,4.18651627,2388.7,2388.5,0.55]
[1747624287607,4.18655279,2388.6,2388.5,0.55]
[1747624287801,4.18672807,2388.5,2388.4,8.0]
[1747624288005,4.18672807,2388.5,2387.7,0.7754]
[1747624288006,4.18690336,2388.4,2387.7,0.7754]
[1747624288214,4.18727376,2388.2,2387.9,9.602]
[1747624288383,4.18737992,2388.2,2388.0,8.0]
[1747624288583,13.77159495,2388.6,2388.0,8.0]
[1747624288784,4.18725399,2388.2,2388.1,9.602]
[1747624288999,4.18725399,2388.2,2388.1,10.152]
[1747624289788,4.18725399,2388.2,2388.1,9.602]
[1747624290336,4.18699649,2388.4,2388.1,17.602]
[1747624290504,4.187239,2388.3,2388.2,0.55]
[1747624291325,4.18662156,2388.6,2388.2,0.55]
[1747624291640,4.18662349,2388.6,2388.3,8.8162]
[1747624291925,4.18675018,2388.5,2388.3,0.8162]
[1747624292252,4.18690336,2388.4,2388.3,0.8162]
[1747624292394,4.18742933,2388.1,2388.0,0.7897]
[1747624292588,13.77071517,2389.1,2388.1,8.55]
[1747624292940,4.46226656,2389.2,2388.1,8.55]
[1747624292941,4.18708904,2388.3,2388.1,8.55]
[1747624293099,4.18725399,2388.2,2388.1,8.55]
[1747624293407,4.18725399,2388.2,2388.1,8.0]
[1747624293609,4.18778005,2387.9,2387.8,18.073]
[1747624293921,4.18778005,2387.9,2387.8,36.226]
[1747624294295,4.18778005,2387.9,2387.8,28.226]
[1747624294523,4.18778005,2387.9,2387.8,36.226]
[1747624294859,4.18778005,2387.9,2387.8,18.07054313]
[1747624295073,4.18778005,2387.9,2386.5,0.21816263]
[1747624295074,4.18865711,2387.4,2387.3,9.91086321]
[1747624295245,4.18900804,2387.2,2387.1,0.7538]
[1747624295449,4.18900804,2387.2,2387.1,18.3568]
[1747624295759,4.1888431,2387.3,2387.2,0.55]
[1747624296360,4.18779389,2387.9,2387.4,4.73864801]
[1747624296525,14.25728956,2388.2,2387.4,0.55]
[1747624296725,4.18814554,2387.7,2387.3,8.55]
[1747624296927,4.1880412,2387.8,2387.3,8.55]
[1747624297128,4.18795544,2387.8,2387.3,8.55]
[1747624297350,0.7544,2388.6,2387.7,0.55]
[1747624297529,4.18771458,2388.0,2387.9,0.55]
[1747624298764,4.18778005,2387.9,2387.8,9.604]
[1747624298959,4.18763411,2388.0,2387.8,9.604]
[1747624299160,4.18697263,2388.4,2387.8,9.604]
[1747624299333,14.26605747,2388.4,2387.8,9.604]
[1747624299664,4.18760469,2388.0,2387.9,0.55]
[1747624299961,4.18778005,2387.9,2387.8,9.604]
[1747624303236,4.18830624,2387.6,2387.2,0.30773768]
[1747624303439,10.3526,2387.9,2387.2,8.0]
[1747624303440,0.83753847,2387.8,2387.2,8.0]
[1747624303773,4.18877224,2387.4,2387.2,8.0]
[1747624304135,4.18877224,2387.4,2387.2,8.30646706]
[1747624304557,4.18814498,2387.7,2387.2,9.31816586]
[1747624304763,4.1884522,2387.6,2387.3,0.55]
[1747624304963,0.7694,2387.9,2387.0,0.799]
[1747624305172,4.18918352,2387.1,2387.0,9.585]
[1747624306247,4.18882241,2387.4,2387.0,17.585]
[1747624306450,4.18888456,2387.3,2387.0,21.60237182]
[1747624306683,4.18858619,2387.5,2387.1,0.55]
[1747624306889,4.1887672,2387.4,2387.1,0.55]
[1747624307052,4.18872576,2387.4,2387.1,0.55]
[1747624307374,4.18858619,2387.5,2387.3,1.3531]
[1747624307375,4.18853615,2387.5,2387.3,1.3531]
[1747624307581,4.18865711,2387.4,2387.3,1.3531]
[1747624308946,4.19006117,2386.6,2386.5,0.8031]
[1747624309166,4.1899274,2386.7,2386.5,10.3891]
[1747624309375,5.59630397,2387.2,2386.5,10.3891]
[1747624309579,4.19023674,2386.5,2386.4,9.586]
[1747624310185,4.19023674,2386.5,2386.2,0.40977159]
[1747624310186,4.19058793,2386.3,2386.2,0.40977159]
[1747624310586,4.19076355,2386.2,2386.1,0.005]
[1747624312109,0.7994,2386.8,2386.2,0.55]
[1747624312405,4.18990037,2386.7,2386.4,0.55]
[1747624312607,4.18935902,2387.0,2386.3,8.0]
[1747624312807,4.1903519,2386.5,2386.4,9.587]
[1747624313110,4.19041233,2386.4,2386.3,8.55]
[1747624313407,4.19027912,2386.5,2386.3,18.137]
[1747624313596,4.19027912,2386.5,2386.1,0.005]
[1747624313796,4.19076355,2386.2,2386.1,0.005]
[1747624313995,13.77472962,2386.8,2386.1,0.555]
[1747624314216,4.19054134,2386.4,2386.1,0.555]
[1747624314389,4.19068299,2386.3,2386.1,0.555]
[1747624314588,4.19076355,2386.2,2386.1,0.555]
[1747624314799,4.19068288,2386.3,2386.1,0.555]
[1747624315110,4.19076355,2386.2,2386.1,0.555]
[1747624315306,4.19076355,2386.2,2386.1,0.005]
[1747624316877,4.19045179,2386.4,2386.1,0.005]
[1747624317073,4.19076355,2386.2,2386.1,0.005]
[1747624319482,4.19055578,2386.4,2386.1,0.005]
[1747624319693,4.19024041,2386.5,2386.2,0.55]
[1747624319895,4.19010646,2386.6,2386.2,0.55]
[1747624320232,0.8245,2387.3,2386.4,4.74029849]
[1747624320395,4.18971442,2386.8,2386.6,0.55]
[1747624320723,0.8245,2387.3,2386.6,0.55]
[1747624320922,4.18948081,2387.0,2386.6,0.55]
[1747624321427,5.01337051,2387.3,2386.6,0.55]
[1747624321626,4.18981226,2386.8,2386.6,0.55]
[1747624321942,4.19006117,2386.6,2386.5,9.59]
[1747624322892,4.19023674,2386.5,2386.4,18.092]
[1747624323824,0.7775,2387.1,2386.5,0.55]
[1747624324017,4.18997438,2386.7,2386.5,0.55]
[1747624324214,4.18918069,2387.2,2386.6,4.19001252]
[1747624324529,4.18918069,2387.2,2386.8,0.7964]
[1747624324734,4.18888659,2387.3,2387.0,0.55]
[1747624324961,0.7775,2388.1,2387.3,8.7964]
[1747624325264,4.18732822,2388.2,2387.6,4.18817323]
[1747624325424,4.18769296,2388.0,2387.8,0.55]
[1747624325741,0.49413726,2388.4,2387.9,9.59]
[1747624325943,7.87553327,2389.0,2387.9,9.59]
[1747624325944,4.18729684,2388.2,2387.9,9.59]
[1747624326255,1.27017204,2388.7,2388.0,0.55]
[1747624326737,4.18725399,2388.2,2388.1,9.589]
[1747624327109,4.18725399,2388.2,2387.8,0.55]
[1747624327303,0.7714,2388.2,2387.5,0.55]
[1747624327536,4.18830624,2387.6,2387.5,0.55]
[1747624328515,4.18820037,2387.7,2387.5,0.55]
[1747624328747,4.18830624,2387.6,2387.5,0.55]
[1747624329423,4.18848167,2387.5,2387.4,18.093]
[1747624329627,4.18848167,2387.5,2387.4,27.681]
[1747624329821,4.18848167,2387.5,2387.4,18.093]
[1747624330746,4.18848167,2387.5,2387.3,9.588]
[1747624330953,4.18848167,2387.5,2386.7,19.22140111]
[1747624330954,4.18971007,2386.8,2386.7,19.22140111]
[1747624331410,4.18971007,2386.8,2386.7,0.30750111]
[1747624332023,4.19006117,2386.6,2386.5,8.0]
[1747624332245,4.19006117,2386.6,2386.4,9.588]
[1747624332246,4.19023674,2386.5,2386.4,9.588]
[1747624332824,4.19023674,2386.5,2386.4,10.138]
[1747624333059,4.19076355,2386.2,2386.1,0.005]
[1747624335434,4.19076355,2386.2,2386.1,9.584]
[1747624335943,4.18918352,2387.1,2386.2,0.55]
[1747624336113,4.19058793,2386.3,2386.1,0.7957]
[1747624336318,4.19076355,2386.2,2386.1,0.005]
[1747624336618,5.0288987,2386.2,2386.1,0.005]
[1747624337433,5.7834987,2386.2,2386.1,0.005]
[1747624338148,0.7847,2385.6,2385.5,0.005]
[1747624338380,24.13351757,2385.6,2385.5,0.005]
[1747624338576,16.32198012,2385.6,2385.5,0.005]
[1747624338717,6.74498012,2385.6,2385.5,0.005]
[1747624338919,4.97651757,2385.6,2385.5,0.005]
[1747624340164,4.19181757,2385.6,2385.5,0.005]
[1747624342029,13.76997437,2386.1,2385.5,0.005]
[1747624342248,4.19175813,2385.7,2385.5,0.005]
[1747624342547,4.19181757,2385.6,2385.5,0.005]
[1747624347079,0.7983,2386.4,2385.7,0.55]
[1747624347281,0.7983,2386.7,2385.9,8.55]
[1747624347479,0.49267204,2386.9,2386.3,0.55]
[1747624347480,4.18971007,2386.8,2386.3,0.55]
[1747624347790,0.49267204,2386.9,2386.5,0.55]
[1747624348086,0.49267204,2386.9,2386.7,0.55]
[1747624348447,4.18938851,2387.0,2386.7,0.55]
[1747624348654,4.18959563,2386.9,2386.7,0.55]
[1747624348867,4.18971007,2386.8,2386.7,0.55]
[1747624349181,4.18988561,2386.7,2386.6,0.55]
[1747624349361,4.18988561,2386.7,2386.6,10.132]
[1747624350395,2.06618031,2387.3,2386.7,0.55]
[1747624350606,4.18971007,2386.8,2386.7,0.55]
[1747624350757,4.18988561,2386.7,2386.6,10.132]
[1747624351105,4.18988561,2386.7,2386.6,9.582]
[1747624352167,4.18988561,2386.7,2386.6,10.132]
[1747624352363,4.19023674,2386.5,2386.3,18.098]
[1747624352568,4.19058793,2386.3,2386.2,9.581]
[1747624352907,4.19146617,2385.8,2385.7,1.3159]
[1747624353068,4.19091413,2386.2,2385.8,0.55]
[1747624353398,4.19058793,2386.3,2385.8,0.55]
[1747624353557,4.19085548,2386.2,2386.0,0.55]
[1747624353758,4.1903007,2386.5,2386.0,0.85857371]
[1747624354065,4.19004536,2386.7,2386.3,0.55]
[1747624354265,4.19023674,2386.5,2386.4,10.13]
[1747624354574,4.19058793,2386.3,2386.2,0.55]
[1747624354757,4.19058793,2386.3,2386.2,19.09550737]
[1747624354957,4.1903458,2386.5,2386.2,19.09550737]
[1747624355168,9.754,2386.5,2385.5,0.005]
[1747624355398,8.71377684,2385.6,2385.5,0.005]
[1747624355584,18.53577684,2385.6,2385.5,0.005]
[1747624355785,14.84621757,2385.6,2385.5,0.005]
[1747624357482,5.02421757,2385.6,2385.5,0.005]
[1747624357794,14.83121757,2385.6,2385.5,0.005]
[1747624358295,4.19181757,2385.6,2385.5,0.005]
[1747624358856,6.01036559,2385.6,2385.5,0.005]
[1747624360791,4.19181757,2385.6,2385.5,0.005]
[1747624360998,13.95781757,2385.6,2385.5,0.005]
[1747624361199,4.19181757,2385.6,2385.5,0.005]
[1747624361495,4.19181757,2385.6,2385.5,28.235]
[1747624361696,4.19181757,2385.6,2385.5,27.685]
[1747624363364,5.0301657,2385.6,2385.5,9.587]
[1747624364501,4.19181757,2385.6,2385.5,9.587]
[1747624366168,4.19169651,2385.7,2385.5,9.587]
[1747624366600,4.19164186,2385.7,2385.5,9.587]
[1747624366796,4.19181757,2385.6,2385.5,9.587]
[1747624375104,4.1916991,2385.7,2385.5,10.137]
[1747624375287,4.1916991,2385.7,2385.6,0.9587]
[1747624375288,4.19164186,2385.7,2385.6,0.9587]
[1747624375488,4.19181757,2385.6,2385.5,10.137]
[1747624376897,4.19170461,2385.7,2385.5,10.137]
[1747624377280,4.19170461,2385.7,2385.6,0.791]
[1747624377480,4.19164186,2385.7,2385.6,0.791]
[1747624377709,4.19181757,2385.6,2385.5,0.005]
[1747624378709,4.19174464,2385.7,2385.5,0.005]
[1747624379014,4.1914838,2385.8,2385.5,0.005]
[1747624379178,4.19181757,2385.6,2385.5,0.005]
[1747624379586,4.19171621,2385.7,2385.5,0.005]
[1747624379780,4.19176654,2385.7,2385.5,0.005]
[1747624380009,4.19181757,2385.6,2385.5,0.005]
[1747624380413,4.191182,2386.0,2385.5,0.005]
[1747624380601,4.19067016,2386.3,2385.8,0.55]
[1747624380811,14.53508825,2386.6,2385.9,9.773]
[1747624381012,4.19078182,2386.2,2385.9,9.773]
[1747624381213,4.19023674,2386.5,2385.9,9.773]
[1747624381414,4.19111483,2386.0,2385.9,10.08826784]
[1747624382382,4.19111483,2386.0,2385.9,9.773]
[1747624383623,13.77211483,2386.0,2385.9,9.773]
[1747624384125,16.34222306,2386.0,2385.9,9.773]
[1747624384292,4.19181757,2385.6,2385.5,9.778]
[1747624384491,4.96561757,2385.6,2385.5,0.005]
[1747624385487,15.03561757,2385.6,2385.5,0.005]
[1747624385916,4.96561757,2385.6,2385.5,0.005]
[1747624386116,14.54661757,2385.6,2385.5,0.005]
[1747624386318,5.77590704,2385.6,2385.5,0.005]
[1747624386516,15.36190704,2385.6,2385.5,0.005]
[1747624388223,15.36190704,2385.6,2384.8,0.30682052]
[1747624388224,5.02094792,2384.9,2384.8,0.30682052]
[1747624388424,8.71050719,2384.9,2384.8,0.30682052]
[1747624388634,5.02094792,2384.9,2384.8,0.30682052]
[1747624388943,4.19331199,2384.8,2384.5,9.774]
[1747624389128,4.19327663,2384.8,2384.6,10.7524]
[1747624389622,0.8279,2385.5,2384.7,0.55]
[1747624389815,4.19279653,2385.1,2384.8,0.7992]
[1747624390021,4.19304792,2384.9,2384.8,0.7992]
[1747624390216,4.19304792,2384.9,2384.8,1.3492]
[1747624390416,4.19339958,2384.7,2384.6,9.775]
[1747624390909,4.19327636,2384.8,2384.6,9.775]
[1747624391110,4.1924239,2385.3,2384.7,0.55]
[1747624391310,3.68955927,2385.8,2384.9,0.55]
[1747624391311,9.665,2385.7,2384.9,0.55]
[1747624391534,0.49267204,2386.1,2385.7,0.55]
[1747624391737,0.84063658,2386.1,2385.9,0.8016]
[1747624391918,0.84063658,2386.1,2386.0,0.59190909]
[1747624392126,0.34964117,2386.1,2386.0,12.6481927]
[1747624392763,0.00167663,2386.1,2386.0,16.83930753]
[1747624392972,2.718321,2386.3,2386.2,4.74076355]
[1747624393107,2.718321,2386.3,2386.2,23.23436355]
[1747624393311,2.44224151,2386.3,2386.2,23.23436355]
[1747624393541,3.64062594,2386.9,2386.8,9.3516]
[1747624393846,3.64062594,2386.9,2386.8,41.42031007]
[1747624394765,3.2936586,2387.3,2387.2,13.54060804]
[1747624395048,3.2936586,2387.3,2387.2,23.22960804]
[1747624395643,3.2936586,2387.3,2387.2,19.0406]
[1747624395941,3.2936586,2387.3,2387.2,25.55258533]
[1747624396143,4.18746378,2388.1,2387.3,8.55]
[1747624396348,4.18790078,2387.9,2387.5,0.55]
[1747624396712,4.18765321,2388.0,2387.5,0.55]
[1747624397049,4.1877939,2387.9,2387.7,0.55]
[1747624397280,4.18690336,2388.4,2387.8,18.648]
[1747624397547,4.18765398,2388.0,2387.9,9.685]
[1747624397746,4.18883257,2387.3,2387.2,0.8016]
[1747624397912,4.18883257,2387.3,2387.2,11.0346]
[1747624398558,4.18883257,2387.3,2387.2,10.233]
[1747624399046,4.18871969,2387.4,2387.2,10.233]
[1747624399217,4.18883257,2387.3,2387.2,10.233]
[1747624399716,4.18867282,2387.4,2387.2,10.233]
[1747624400047,4.18883257,2387.3,2387.2,10.233]
[1747624400210,4.18851051,2387.5,2387.2,10.233]
[1747624400407,4.18799659,2387.8,2387.3,0.55]
[1747624400613,4.18788546,2387.9,2387.6,0.55]
[1747624400845,4.18788546,2387.9,2387.7,9.683]
[1747624401162,0.7609,2388.3,2387.8,8.55]
[1747624401458,4.18726997,2388.2,2387.8,8.55]
[1747624401754,4.18795544,2387.8,2387.7,9.683]
[1747624402251,4.18840751,2387.6,2387.5,0.55]
[1747624402441,4.18840751,2387.6,2387.5,18.232]
[1747624402940,4.18819896,2387.7,2387.5,18.232]
[1747624403135,4.18803809,2387.8,2387.5,18.232]
[1747624403435,4.18779584,2387.9,2387.5,18.232]
[1747624403751,0.418727,2388.2,2387.5,19.168184]
[1747624403752,4.18805361,2387.8,2387.5,19.168184]
[1747624403927,4.18816569,2387.7,2387.5,18.232]
[1747624404126,4.18830624,2387.6,2387.5,18.232]
[1747624404555,4.18795595,2387.8,2387.5,18.232]
[1747624404937,0.7875,2388.3,2387.5,18.232]
[1747624405141,4.18753657,2388.1,2387.6,8.0]
[1747624405329,4.18753342,2388.1,2387.8,0.55]
[1747624405653,4.18772979,2388.0,2387.8,0.55]
[1747624406254,4.18690336,2388.4,2387.4,0.8168]
[1747624406420,4.18672807,2388.5,2387.7,8.55]
[1747624406754,4.18755869,2388.1,2387.7,0.55]
[1747624406937,4.18768165,2388.0,2387.7,8.55]
[1747624407135,4.18744284,2388.1,2387.7,8.55]
[1747624407539,4.18724208,2388.3,2387.7,8.55]
[1747624407741,4.18729028,2388.2,2387.7,0.55]
[1747624407930,4.18729028,2388.2,2387.9,0.55]
[1747624408130,4.18729028,2388.2,2388.0,27.765]
[1747624408640,0.7949,2388.9,2388.1,0.55]